fUST/lending_fUST_20240501
["ID","MTS","AMOUNT","RATE_DAILY","PERIOD"]
[325185678,1714555850147,-500.0,0.00057534,120]
[325185679,1714555850156,-500.0,0.00057534,60]
[325185680,1714555850166,-500.0,0.00057534,120]
[325185681,1714555850175,-500.0,0.00057534,120]
[325185682,1714555850186,-500.0,0.00057534,120]
[325185683,1714555850195,-507.11,0.00057534,120]
[325185684,1714555850204,-500.0,0.00057534,120]
[325185685,1714555850215,-500.0,0.00057534,120]
[325185686,1714555850224,-500.0,0.00057534,120]
[325185687,1714555850234,-501.12506878,0.00057534,120]
[325185688,1714555850243,-151.0,0.00057534,120]
[325185689,1714555850252,-500.0,0.00057534,120]
[325185690,1714555850262,-151.0,0.00057534,120]
[325185691,1714555850271,-500.0,0.00057534,120]
[325185692,1714555850281,-500.0,0.00057534,120]
[325185693,1714555850290,-500.0,0.00057534,120]
[325185694,1714555850300,-572.82,0.00057534,120]
[325185695,1714555850309,-500.0,0.00057534,120]
[325185696,1714555850319,-541.53022695,0.00057534,120]
[325185697,1714555850328,-500.0,0.00057534,120]
[325185698,1714555850337,-500.0,0.00057534,120]
[325185699,1714555850347,-500.0,0.00057534,120]
[325185700,1714555850356,-500.0,0.00057534,120]
[325185701,1714555850366,-500.0,0.00057534,120]
[325185702,1714555850375,-500.0,0.00057534,120]
[325185703,1714555850385,-500.0,0.00057534,120]
[325185704,1714555850395,-500.0,0.00057534,120]
[325185705,1714555850404,-500.0,0.00057534,120]
[325185706,1714555850413,-500.0,0.00057534,120]
[325185707,1714555850423,-500.0,0.00057534,120]
[325185708,1714555850432,-500.0,0.00057534,120]
[325185709,1714555850441,-500.0,0.00057534,120]
[325185710,1714555850451,-500.0,0.00057534,120]
[325185711,1714555850460,-500.0,0.00057534,120]
[325185712,1714555850469,-500.0,0.00057534,120]
[325185713,1714555850479,-500.0,0.00057534,120]
[325185714,1714555850488,-500.0,0.00057534,120]
[325185715,1714555850497,-500.0,0.00057534,120]
[325185716,1714555850506,-419.32411322,0.00057534,120]
[325185717,1714555850515,-621.19,0.00057534,120]
[325185718,1714555850524,-1800.79,0.00057534,120]
[325185719,1714555850533,-500.0,0.00057534,120]
[325185720,1714555850542,-500.0,0.00057534,120]
[325185721,1714555850551,-500.0,0.00057534,120]
[325185722,1714555850561,-2576.68,0.00057534,120]
[325185723,1714555850570,-500.0,0.00057534,120]
[325185724,1714555850579,-526.58,0.00057534,120]
[325185725,1714555850588,-500.0,0.00057534,120]
[325185726,1714555850597,-973.9,0.00057534,120]
[325185727,1714555850606,-500.0,0.00057534,120]
[325185728,1714555850615,-500.0,0.00057534,120]
[325185729,1714555850624,-500.0,0.00057534,120]
[325185730,1714555850633,-530.87,0.00057534,120]
[325185731,1714555850642,-500.0,0.00057534,120]
[325185732,1714555850651,-206.14912994,0.00057534,120]
[325185733,1714555850660,-500.0,0.00057534,120]
[325185734,1714555850669,-551.76842343,0.00057534,120]
[325185735,1714555850678,-500.0,0.00057534,120]
[325185736,1714555850687,-500.0,0.00057534,120]
[325185737,1714555850697,-500.0,0.00057534,120]
[325185738,1714555850707,-500.0,0.00057534,120]
[325185739,1714555850716,-13358.86,0.00057534,120]
[325185740,1714555850727,-772.57,0.00057534,120]
[325185741,1714555850736,-548.0,0.00057534,120]
[325185742,1714555850745,-6694.65,0.00057534,120]
[325185743,1714555850754,-500.0,0.00057534,120]
[325185744,1714555850763,-500.0,0.00057534,120]
[325185745,1714555850773,-500.0,0.00057534,120]
[325185746,1714555850782,-500.0,0.00057534,120]
[325185747,1714555850791,-500.0,0.00057534,120]
[325185748,1714555850801,-377.91752902,0.00057534,120]
[325185749,1714555850810,-500.0,0.00057534,120]
[325185750,1714555850819,-9900.81,0.00057534,120]
[325185751,1714555850828,-1492.51,0.00057534,120]
[325185752,1714555850838,-1204.96,0.00057534,120]
[325185753,1714555850847,-500.0,0.00057534,120]
[325185754,1714555850856,-500.0,0.00057534,30]
[325185755,1714555850866,-500.0,0.00057534,3]
[325185756,1714555850875,-500.0,0.00057534,120]
[325185757,1714555850884,-500.0,0.00057534,120]
[325185758,1714555850893,-500.0,0.00057534,120]
[325185759,1714555850902,-340.72420507,0.00057534,120]
[325185760,1714555850911,-500.0,0.00057534,120]
[325185761,1714555850920,-500.0,0.00057534,120]
[325185762,1714555850929,-23503.18,0.00057534,120]
[325185763,1714555850939,-510.76687985,0.00057534,120]
[325185764,1714555850948,-874.36,0.00057534,21]
[325185765,1714555850958,-1568.0,0.000577,120]
[325185766,1714555850967,-3026.6,0.0005786,120]
[325185767,1714555850979,-587.1231292,0.00058,120]
[325185768,1714555850989,-500.0,0.00058356,120]
[325185769,1714555851000,-3401.5134236,0.0005838,30]
[325185770,1714555851010,-380.74341745,0.000589,101]
[325185771,1714555851019,-380.74341742,0.000589,101]
[325185772,1714555851028,-380.74341742,0.000589,101]
[325185773,1714555851037,-380.74341742,0.000589,101]
[325185774,1714555851046,-380.74341742,0.000589,101]
[325185775,1714555851056,-380.74341742,0.000589,101]
[325185776,1714555851066,-380.74341742,0.000589,101]
[325185777,1714555851076,-380.74341742,0.000589,101]
[325185778,1714555851086,-380.74341742,0.000589,101]
[325185779,1714555851096,-380.74341742,0.000589,101]
[325185780,1714555851106,-500.0,0.000589,101]
[325185781,1714555851115,-46183.24918822,0.00059,2]
[325185782,1714555851277,-27843.19243931,0.00059,2]
[325185783,1714555851546,-746.4,0.00059,2]
[325185784,1714555851557,-2176.10726515,0.00059,2]
[325185785,1714555853762,273.37336231,9.9e-05,2]
[325185786,1714555861956,273.37336231,9.9e-05,2]
[325185787,1714555870927,273.37336231,9.9e-05,2]
[325185788,1714555879712,273.37336231,9.9e-05,2]
[325185789,1714555888660,273.37336231,9.9e-05,2]
[325185790,1714555897975,273.37336231,9.9e-05,2]
[325185791,1714555906309,273.37336231,9.9e-05,2]
[325185792,1714555914884,273.37336231,9.9e-05,2]
[325185793,1714555919304,717.98897193,9.999e-05,2]
[325185794,1714555924934,273.37336231,9.9e-05,2]
[325185795,1714555932992,273.37336231,9.9e-05,2]
[325185796,1714555938032,379.83575161,9.9e-05,15]
[325185797,1714555941837,273.37336231,9.9e-05,2]
[325185798,1714555950257,273.37336231,9.9e-05,2]
[325185799,1714555958728,273.37336231,9.9e-05,2]
[325185800,1714555967404,273.37336231,9.9e-05,2]
[325185801,1714555975821,273.37336231,9.9e-05,2]
[325185802,1714555983863,273.37336231,9.9e-05,2]
[325185803,1714555992748,273.37336231,9.9e-05,2]
[325185804,1714556001085,273.37336231,9.9e-05,2]
[325185805,1714556010473,273.37336231,9.9e-05,2]
[325185806,1714556018525,273.37336231,9.9e-05,2]
[325185807,1714556026944,273.37336231,9.9e-05,2]
[325185808,1714556035039,273.37336231,9.9e-05,2]
[325185809,1714556043900,273.37336231,9.9e-05,2]
[325185810,1714556054966,273.37336231,9.9e-05,2]
[325185811,1714556063304,273.37336231,9.9e-05,2]
[325185812,1714556071919,273.37336231,9.9e-05,2]
[325185813,1714556080782,273.37336231,9.9e-05,2]
[325185814,1714556089282,273.37336231,9.9e-05,2]
[325185815,1714556097549,273.37336231,9.9e-05,2]
[325185816,1714556106134,273.37336231,9.9e-05,2]
[325185817,1714556114464,273.37336231,9.9e-05,2]
[325185818,1714556122482,273.37336231,9.9e-05,2]
[325185819,1714556131322,273.37336231,9.9e-05,2]
[325185820,1714556139452,273.37336231,9.9e-05,2]
[325185821,1714556148014,273.37336231,9.9e-05,2]
[325185822,1714556165215,211.93380592,9.9e-05,2]
[325185823,1714556437886,717.98897193,9.999e-05,2]
[325185824,1714556554428,273.37336231,9.9e-05,2]
[325185825,1714556563277,273.37336231,9.9e-05,2]
[325185826,1714556572544,273.37336231,9.9e-05,2]
[325185829,1714556915457,717.98897193,9.999e-05,2]
[325186557,1714557032479,-411.69907524,0.0001428,2]
[325186560,1714557032491,-2485.13494317,0.0001428,2]
[325186562,1714557032504,-1670.99319192,0.0001428,2]
[325186564,1714557032518,-1284.5294023,0.0001428,2]
[325186695,1714557039786,-53374.38295066,0.0001428,2]
[325186697,1714557039796,-24900.0,0.00014281,2]
[325186699,1714557039805,-250.0,0.00014358,2]
[325186701,1714557039815,-312.919661,0.00014384,2]
[325186703,1714557039824,-2101.71813346,0.00015,2]
[325186705,1714557039833,-939.61631274,0.00015,2]
[325186707,1714557039842,-1608.45892956,0.0001531,2]
[325186709,1714557039852,-757.86803451,0.00015407,2]
[325186711,1714557039861,-1809.6132145,0.00015408,2]
[325186736,1714557040039,-9378.45996285,0.00016,2]
[325186738,1714557040049,-892.41137425,0.0001879,2]
[325186740,1714557040058,-160.675707,0.00019178,2]
[325186742,1714557040068,-160.676051,0.00019178,2]
[325186744,1714557040077,-910.87333125,0.000199,2]
[325186746,1714557040086,-272.7929159,0.00019996,2]
[325186748,1714557040096,-304.36673048,0.00019996,2]
[325186750,1714557040106,-1354.09231686,0.00019996,2]
[325186752,1714557040115,-154.829687,0.00019996,2]
[325186754,1714557040124,-1677.62779446,0.00019997,2]
[325186756,1714557040135,-2673.78460954,0.00019997,2]
[325186758,1714557040143,-409.74702,0.00019997,2]
[325186760,1714557040153,-312.89043206,0.00019997,2]
[325186762,1714557040162,-730.61014924,0.00019998,2]
[325186764,1714557040172,-264.50884171,0.00019999,2]
[325186766,1714557040181,-1564.49780022,0.0002,2]
[325186768,1714557040191,-5461.4995396,0.0002,2]
[325186770,1714557040200,-67435.2931103,0.0002,2]
[325186772,1714557040209,-409.25856025,0.0002,2]
[325186774,1714557040218,-330.04006716,0.0002,2]
[325186776,1714557040228,-241.74656629,0.0002,2]
[325186778,1714557040237,-166.666666,0.00021918,2]
[325186780,1714557040246,-154.69061876,0.00022,2]
[325186782,1714557040255,-159.24114282,0.00022,2]
[325186784,1714557040264,-166.666666,0.00022431,2]
[325186786,1714557040274,-166.666666,0.00022944,2]
[325186788,1714557040283,-714.26625523,0.00023,2]
[325186790,1714557040292,-166.666666,0.00023456,2]
[325186792,1714557040302,-166.666666,0.00023969,2]
[325186794,1714557040311,-246.30815097,0.00024,2]
[325186796,1714557040320,-166.666666,0.00024482,2]
[325186798,1714557040329,-154.69061876,0.00025,2]
[325186800,1714557040339,-756.93644427,0.00025,2]
[325186802,1714557040350,-229.22232044,0.00027512,2]
[325186804,1714557040359,-910.87333125,0.00029968,2]
[325186806,1714557040369,-447.2209758,0.00032,4]
[325186808,1714557040378,-5000.0,0.00033,4]
[325186810,1714557040388,-466.46671286,0.00034,4]
[325186812,1714557040397,-154.69061876,0.00035,4]
[325186814,1714557040406,-597.98045973,0.00035,2]
[325186816,1714557040415,-5917.45193267,0.00035,4]
[325186818,1714557040424,-10121.0,0.00035,30]
[325186820,1714557040434,-425.45157815,0.00035,10]
[325186821,1714557040443,-1753.71255042,0.00035,30]
[325186823,1714557040452,-2000.0,0.00035516,2]
[325186825,1714557040462,-12677.51,0.00035616,3]
[325186827,1714557040471,-10564.59,0.00035616,3]
[325186829,1714557040480,-2049.08470554,0.00037,2]
[325186831,1714557040489,-2008.55772834,0.00037,5]
[325186833,1714557040499,-239.19602788,0.00038,30]
[325186834,1714557040509,-607.97128,0.00039388,2]
[325186836,1714557040521,-5104.97968368,0.0004,4]
[325186838,1714557040531,-486.33472313,0.0004,2]
[325186840,1714557040541,-303.86860129,0.0004,15]
[325186843,1714557040552,-910.87333125,0.00040036,2]
[325186844,1714557040561,-607.97128,0.00040482,2]
[325186846,1714557040571,-315.93873987,0.00041,2]
[325186849,1714557040581,-607.97129,0.00041576,2]
[325186851,1714557040593,-1522.2,0.00042124,3]
[325186853,1714557040603,-154.69061876,0.0004234,10]
[325186855,1714557040614,-622.232,0.0004238,48]
[325186857,1714557040623,-1695.41656809,0.000425,30]
[325186859,1714557040632,-607.97128,0.0004267,2]
[325186861,1714557040643,-240.18860609,0.00043647,30]
[325186863,1714557040653,-607.97129,0.00043764,2]
[325186865,1714557040663,-164.04387466,0.00043764,52]
[325186867,1714557040672,-692.2503617,0.00044378,30]
[325186869,1714557040681,-607.97128,0.00044858,2]
[325186871,1714557040690,-1531.45781548,0.00045,4]
[325186873,1714557040699,-151.0,0.00045,120]
[325186875,1714557040708,-151.0,0.00045945,120]
[325186877,1714557040718,-607.97129,0.00045952,2]
[325186879,1714557040727,-1519.119,0.000468,90]
[325186881,1714557040737,-151.0,0.00046877,120]
[325186883,1714557040747,-159.0,0.00047,90]
[325186885,1714557040756,-607.97128,0.00047046,2]
[325186887,1714557040765,-151.0,0.00047808,120]
[325186889,1714557040774,-607.97129,0.00048141,2]
[325186891,1714557040785,-151.0,0.0004874,120]
[325186892,1714557040794,-980.89,0.000488,90]
[325186893,1714557040803,-5000.0,0.00048877,30]
[325186894,1714557040812,-159.0,0.00048904,90]
[325186896,1714557040822,-607.97128,0.00049235,2]
[325186897,1714557040831,-150.66852924,0.00049376,2]
[325186898,1714557040840,-5374.0,0.00049562,60]
[325186899,1714557040849,-151.0,0.00049671,120]
[325186900,1714557040858,-307.872597,0.00049863,2]
[325186902,1714557040869,-271.878249,0.00049863,2]
[325186904,1714557040878,-403.55519046,0.000499,84]
[325186906,1714557040889,-6581.00549603,0.0005,120]
[325186908,1714557040898,-154.69061876,0.0005,30]
[325186910,1714557040907,-910.87333125,0.00050104,2]
[325186911,1714557040916,-607.97129,0.00050329,2]
[325186913,1714557040925,-151.0,0.00050603,120]
[325186915,1714557040935,-692.2503617,0.00051107,60]
[325186917,1714557040944,-607.97128,0.00051423,2]
[325186918,1714557040954,-151.0,0.00051534,120]
[325186919,1714557040963,-153.0,0.00052185,2]
[325186920,1714557040973,-153.0,0.00052185,2]
[325186921,1714557040983,-153.0,0.00052185,2]
[325186922,1714557040993,-151.0,0.00052466,120]
[325186923,1714557041002,-607.97129,0.00052517,2]
[325186925,1714557041011,-151.0,0.00053397,120]
[325186927,1714557041020,-607.97128,0.00053611,2]
[325186928,1714557041030,-999.991,0.000538,110]
[325186929,1714557041039,-151.0,0.00054329,120]
[325186930,1714557041048,-307.872597,0.00054448,2]
[325186931,1714557041057,-271.878249,0.00054448,2]
[325186932,1714557041066,-607.97129,0.00054705,2]
[325186933,1714557041075,-240.18860609,0.00054769,60]
[325186934,1714557041084,-151.0,0.0005526,120]
[325186935,1714557041094,-607.97128,0.00055799,2]
[325186936,1714557041103,-1801.28378583,0.00056,90]
[325186937,1714557041113,-151.0,0.00056192,120]
[325186938,1714557041122,-607.97129,0.00056893,2]
[325186939,1714557041130,-5999.98,0.00057,120]
[325186940,1714557041140,-6000.0,0.00057,120]
[325186941,1714557041150,-151.0,0.00057123,120]
[325186942,1714557041159,-31290.17909938,0.00057301,61]
[325186943,1714557041168,-692.2503617,0.00057301,120]
[325186944,1714557041177,-500.0,0.00057534,120]
[325186945,1714557041186,-500.0,0.00057534,120]
[325186946,1714557041196,-500.0,0.00057534,120]
[325186948,1714557041205,-500.0,0.00057534,120]
[325186949,1714557041214,-500.0,0.00057534,120]
[325186951,1714557041223,-211.37505663,0.00057534,120]
[325186952,1714557041232,-407.86654599,0.00057534,120]
[325186953,1714557041242,-500.0,0.00057534,120]
[325186954,1714557041251,-500.0,0.00057534,120]
[325186955,1714557041260,-500.0,0.00057534,120]
[325186956,1714557041269,-500.0,0.00057534,120]
[325186957,1714557041279,-500.0,0.00057534,120]
[325186958,1714557041288,-500.0,0.00057534,120]
[325186959,1714557041297,-500.0,0.00057534,120]
[325186960,1714557041306,-500.0,0.00057534,120]
[325186962,1714557041315,-500.0,0.00057534,120]
[325186963,1714557041325,-500.0,0.00057534,120]
[325186964,1714557041334,-553.77,0.00057534,120]
[325186965,1714557041343,-715.17,0.00057534,120]
[325186967,1714557041353,-500.0,0.00057534,120]
[325186969,1714557041362,-500.0,0.00057534,120]
[325186970,1714557041371,-500.0,0.00057534,120]
[325186972,1714557041380,-500.0,0.00057534,120]
[325186974,1714557041391,-500.0,0.00057534,120]
[325186976,1714557041401,-500.0,0.00057534,120]
[325186977,1714557041411,-500.0,0.00057534,120]
[325186979,1714557041420,-500.0,0.00057534,120]
[325186980,1714557041430,-500.0,0.00057534,120]
[325186982,1714557041439,-500.0,0.00057534,120]
[325186984,1714557041449,-500.0,0.00057534,120]
[325186986,1714557041458,-500.0,0.00057534,120]
[325186988,1714557041468,-500.0,0.00057534,120]
[325186990,1714557041477,-500.0,0.00057534,120]
[325186991,1714557041486,-500.0,0.00057534,120]
[325186993,1714557041496,-500.0,0.00057534,120]
[325186995,1714557041507,-506.13334812,0.00057534,120]
[325186997,1714557041517,-500.0,0.00057534,120]
[325186998,1714557041526,-500.0,0.00057534,120]
[325187001,1714557041538,-500.0,0.00057534,120]
[325187002,1714557041552,-500.0,0.00057534,120]
[325187003,1714557041565,-500.0,0.00057534,120]
[325187004,1714557041578,-500.0,0.00057534,120]
[325187005,1714557041591,-500.0,0.00057534,120]
[325187006,1714557041602,-500.0,0.00057534,120]
[325187007,1714557041613,-369.17686616,0.00057534,120]
[325187008,1714557041625,-500.0,0.00057534,120]
[325187009,1714557041638,-517.66,0.00057534,120]
[325187010,1714557041650,-500.0,0.00057534,120]
[325187011,1714557041662,-500.0,0.00057534,120]
[325187012,1714557041674,-500.0,0.00057534,120]
[325187013,1714557041687,-500.0,0.00057534,60]
[325187014,1714557041699,-500.0,0.00057534,120]
[325187015,1714557041711,-829.07,0.00057534,120]
[325187016,1714557041725,-500.0,0.00057534,120]
[325187017,1714557041737,-500.0,0.00057534,120]
[325187018,1714557041750,-1042.65,0.00057534,120]
[325187019,1714557041761,-1010.95,0.00057534,120]
[325187020,1714557041772,-500.0,0.00057534,120]
[325187021,1714557041784,-500.0,0.00057534,120]
[325187022,1714557041795,-500.0,0.00057534,120]
[325187023,1714557041807,-500.0,0.00057534,120]
[325187024,1714557041819,-500.0,0.00057534,120]
[325187025,1714557041830,-500.0,0.00057534,120]
[325187026,1714557041842,-500.0,0.00057534,120]
[325187027,1714557041852,-500.0,0.00057534,120]
[325187028,1714557041862,-500.0,0.00057534,120]
[325187029,1714557041872,-566.84,0.00057534,120]
[325187030,1714557041884,-500.0,0.00057534,120]
[325187031,1714557041899,-500.0,0.00057534,120]
[325187032,1714557041911,-500.0,0.00057534,120]
[325187033,1714557041922,-500.0,0.00057534,2]
[325187034,1714557041934,-985.04,0.00057534,120]
[325187035,1714557041945,-773.15,0.00057534,120]
[325187036,1714557041956,-551.86443502,0.00057534,120]
[325187037,1714557041969,-500.0,0.00057534,120]
[325187038,1714557041983,-500.0,0.00057534,120]
[325187039,1714557041995,-723.7,0.00057534,120]
[325187040,1714557042007,-500.0,0.00057534,120]
[325187041,1714557042018,-500.0,0.00057534,120]
[325187042,1714557042028,-583.24,0.00057534,120]
[325187043,1714557042039,-496.53007339,0.00057534,120]
[325187044,1714557042049,-500.0,0.00057534,120]
[325187045,1714557042060,-504.0284564,0.00057534,120]
[325187046,1714557042073,-500.0,0.00057534,120]
[325187047,1714557042085,-500.0,0.00057534,120]
[325187048,1714557042097,-699.96,0.00057534,7]
[325187049,1714557042108,-500.0,0.00057534,120]
[325187050,1714557042118,-500.0,0.00057534,2]
[325187051,1714557042130,-502.5,0.00057534,120]
[325187052,1714557042147,-539.8333308,0.00057534,120]
[325187053,1714557042159,-500.0,0.00057534,120]
[325187054,1714557042171,-500.6483938,0.00057534,120]
[325187055,1714557042182,-500.0,0.00057534,120]
[325187056,1714557042192,-500.0,0.00057534,120]
[325187057,1714557042203,-500.0,0.00057534,120]
[325187058,1714557042213,-500.0,0.00057534,120]
[325187059,1714557042225,-278.18314733,0.00057534,120]
[325187060,1714557042236,-501.11798054,0.00057534,120]
[325187061,1714557042247,-509.01477066,0.00057534,120]
[325187062,1714557042257,-500.0,0.00057534,120]
[325187063,1714557042268,-500.0,0.00057534,120]
[325187064,1714557042278,-170.62705614,0.00057534,120]
[325187065,1714557042289,-500.0,0.00057534,120]
[325187066,1714557042300,-500.0,0.00057534,120]
[325187067,1714557042312,-728.41,0.00057534,120]
[325187068,1714557042322,-500.0,0.00057534,120]
[325187069,1714557042333,-500.0,0.00057534,120]
[325187070,1714557042345,-612.01089784,0.00057534,120]
[325187071,1714557042355,-500.0,0.00057534,120]
[325187072,1714557042367,-555.16,0.00057534,120]
[325187073,1714557042378,-500.0,0.00057534,120]
[325187074,1714557042392,-500.0,0.00057534,120]
[325187075,1714557042403,-500.0,0.00057534,120]
[325187076,1714557042413,-500.0,0.00057534,120]
[325187077,1714557042424,-500.0,0.00057534,120]
[325187078,1714557042434,-635.67,0.00057534,120]
[325187079,1714557042444,-500.0,0.00057534,120]
[325187080,1714557042455,-500.0,0.00057534,120]
[325187081,1714557042466,-500.0,0.00057534,120]
[325187082,1714557042476,-500.0,0.00057534,120]
[325187083,1714557042487,-625.08415552,0.00057534,120]
[325187084,1714557042498,-500.0,0.00057534,120]
[325187085,1714557042513,-986.56,0.00057534,120]
[325187086,1714557042524,-500.0,0.00057534,120]
[325187087,1714557042534,-500.0,0.00057534,120]
[325187088,1714557042546,-500.0,0.00057534,120]
[325187089,1714557042558,-500.0,0.00057534,120]
[325187090,1714557042568,-1672.86,0.00057534,120]
[325187091,1714557042578,-604.83946406,0.00057534,120]
[325187092,1714557042590,-500.0,0.00057534,120]
[325187093,1714557042601,-1442.82,0.00057534,120]
[325187094,1714557042611,-652.21,0.00057534,2]
[325187095,1714557042622,-300.0,0.00057534,2]
[325187097,1714557042634,-500.0,0.00057534,120]
[325187099,1714557042647,-500.0,0.00057534,120]
[325187101,1714557042657,-610.7,0.00057534,120]
[325187103,1714557042667,-500.0,0.00057534,120]
[325187105,1714557042678,-500.0,0.00057534,120]
[325187108,1714557042688,-500.0,0.00057534,120]
[325187110,1714557042699,-600.80702226,0.00057534,120]
[325187111,1714557042709,-500.0,0.00057534,120]
[325187112,1714557042720,-500.0,0.00057534,120]
[325187113,1714557042730,-500.0,0.00057534,120]
[325187114,1714557042740,-646.7,0.00057534,120]
[325187115,1714557042751,-500.0,0.00057534,120]
[325187116,1714557042762,-500.0,0.00057534,120]
[325187117,1714557042772,-645.18,0.00057534,120]
[325187118,1714557042783,-702.36,0.00057534,120]
[325187119,1714557042794,-500.0,0.00057534,120]
[325187120,1714557042804,-500.0,0.00057534,120]
[325187121,1714557042815,-500.0,0.00057534,120]
[325187122,1714557042825,-500.0,0.00057534,120]
[325187123,1714557042836,-864.54,0.00057534,120]
[325187124,1714557042847,-500.0,0.00057534,120]
[325187125,1714557042857,-500.0,0.00057534,120]
[325187126,1714557042868,-500.0,0.00057534,120]
[325187127,1714557042880,-817.68,0.00057534,120]
[325187128,1714557042894,-500.0,0.00057534,120]
[325187129,1714557042904,-1766.87,0.00057534,120]
[325187130,1714557042915,-500.0,0.00057534,120]
[325187131,1714557042926,-500.0,0.00057534,120]
[325187132,1714557042937,-282.07927789,0.00057534,120]
[325187133,1714557042948,-500.0,0.00057534,120]
[325187134,1714557042959,-500.0,0.00057534,120]
[325187135,1714557042970,-1400.34,0.00057534,120]
[325187136,1714557042981,-883.11,0.00057534,120]
[325187137,1714557042992,-500.0,0.00057534,120]
[325187138,1714557043003,-500.0,0.00057534,120]
[325187139,1714557043013,-2457.13,0.00057534,2]
[325187140,1714557043024,-500.0,0.00057534,120]
[325187141,1714557043035,-500.0,0.00057534,120]
[325187142,1714557043046,-500.88982496,0.00057534,120]
[325187143,1714557043056,-500.0,0.00057534,120]
[325187144,1714557043067,-500.0,0.00057534,120]
[325187145,1714557043078,-2824.98,0.00057534,120]
[325187146,1714557043088,-500.0,0.00057534,120]
[325187147,1714557043099,-777.6,0.00057534,120]
[325187148,1714557043110,-500.0,0.00057534,120]
[325187149,1714557043121,-500.0,0.00057534,3]
[325187150,1714557043132,-500.0,0.00057534,120]
[325187151,1714557043145,-1483.16,0.00057534,120]
[325187152,1714557043155,-977.01,0.00057534,120]
[325187153,1714557043166,-500.0,0.00057534,120]
[325187154,1714557043176,-500.0,0.00057534,120]
[325187155,1714557043187,-526.1433345,0.00057534,120]
[325187156,1714557043198,-500.0,0.00057534,120]
[325187157,1714557043209,-1760.97,0.00057534,120]
[325187158,1714557043219,-1508.78,0.00057534,120]
[325187159,1714557043230,-1631.86,0.00057534,120]
[325187160,1714557043241,-500.0,0.00057534,120]
[325187161,1714557043251,-500.0,0.00057534,30]
[325187162,1714557043262,-500.0,0.00057534,120]
[325187163,1714557043273,-553.74,0.00057534,120]
[325187164,1714557043283,-500.0,0.00057534,120]
[325187165,1714557043294,-500.0,0.00057534,120]
[325187166,1714557043304,-500.0,0.00057534,120]
[325187167,1714557043315,-500.0,0.00057534,120]
[325187168,1714557043324,-500.0,0.00057534,120]
[325187169,1714557043336,-245.26198561,0.00057534,120]
[325187170,1714557043552,-500.0,0.00057534,120]
[325187171,1714557043568,-500.0,0.00057534,120]
[325187172,1714557043578,-500.0,0.00057534,120]
[325187173,1714557043590,-959.04,0.00057534,120]
[325187174,1714557043599,-500.0,0.00057534,120]
[325187175,1714557043611,-634.46210224,0.00057534,120]
[325187176,1714557043619,-500.0,0.00057534,120]
[325187177,1714557043628,-500.0,0.00057534,120]
[325187178,1714557043640,-1240.9,0.00057534,120]
[325187179,1714557043650,-1878.51,0.00057534,120]
[325187180,1714557043659,-500.0,0.00057534,120]
[325187181,1714557043668,-500.0,0.00057534,120]
[325187182,1714557043677,-500.0,0.00057534,120]
[325187183,1714557043687,-546.3,0.00057534,120]
[325187184,1714557043697,-1569.99,0.00057534,120]
[325187185,1714557043706,-500.0,0.00057534,120]
[325187186,1714557043715,-1310.44,0.00057534,120]
[325187187,1714557043725,-782.5,0.00057534,120]